Cogmind - Beta 13 @@@ ROGUE MODE // 2024.04.03 @ 19:36:06 Player: nixie Result: Destroyed by G-47 Trooper with Particle Gun Performance ------------- Evolutions (2) 1000 Regions Visited (6) 1200 Robots Destroyed (41) 205 Value Destroyed (1054) 1054 Prototype IDs (0) 0 Alien Tech Used (0) 0 Bonus (-26) -26 TOTAL SCORE: 3433 Bonus ------- Friendly Fire -26 Cogmind --------- Core Integrity 0/550 Matter 300/300 Energy 100/100 System Corruption 0% Temperature Cool (18) Movement Core (200) Ox3 Location -8/Storage Parts ------- > --- POWER (2) -------- (None) > --- PROPULSION (2) --- (None) > --- UTILITY (4) ------ Medium Storage Unit Terrain Scan Processor > --- WEAPON (3) ------- (None) > --- INVENTORY (10) --- Hover Unit Heat Sink Small Storage Unit Experimental Sensor Array Reaction Control System Peak State ------------ > --- POWER ------------ Ion Engine Improved Ion Engine > --- PROPULSION ------- Hover Unit Hover Unit > --- UTILITY ---------- Improved Signal Interpreter Terrain Scan Processor Hacking Suite > --- WEAPON ----------- Pulse Rifle Rocket Launcher > --- INVENTORY -------- Ion Engine Advanced Weight Redist. System Advanced Weight Redist. System Reaction Control System Insulated Plating [Rating: 19] Favorites ----------- Power Ion Engine Engine Ion Engine Propulsion Light Treads Treads Light Treads Hover Unit Hover Unit Flight Unit Flight Unit Utility Hacking Suite Device Reaction Control System Storage Small Storage Unit Processor Improved Signal Interpreter Hackware Hacking Suite Protection Insulated Plating Weapon Pulse Rifle Energy Gun Pulse Rifle Ballistic Gun Light Assault Rifle Launcher Rocket Launcher Special Weapon Plasma Cutter Build | -11 -10 -10 -9 -9 -8 -8 ------- Run | Yrd Mat Min Mat Min Mat Sto Slots Evolved 4 | . . . 2 . 2 . Power 1 | . . . 1 . . . Propulsion . | . . . . . . . Utility 2 | . . . 1 . 1 . Weapon 1 | . . . . . 1 . Parts Attached 43 | 7 3 5 16 5 4 3 Power 9 | 3 1 . 3 2 . . Engine 9 | 3 1 . 3 2 . . Core . | . . . . . . . Reactor . | . . . . . . . Propulsion 11 | 2 . . 4 2 1 2 Treads 7 | 2 . . 2 . 1 2 Leg . | . . . . . . . Wheel . | . . . . . . . Hover 3 | . . . 2 1 . . Flight 1 | . . . . 1 . . Utility 9 | 1 . 3 2 1 2 . Device 1 | . . 1 . . . . Storage 2 | 1 . . . . 1 . Processor 3 | . . 1 1 . 1 . Hackware 1 | . . 1 . . . . Protection 2 | . . . 1 1 . . Artifact . | . . . . . . . Weapon 14 | 1 2 2 7 . 1 1 Energy Gun 7 | . 1 1 5 . . . Energy Cannon . | . . . . . . . Ballistic Gun 4 | 1 1 . 1 . 1 . Ballistic Cannon . | . . . . . . . Launcher 1 | . . 1 . . . . Special Weapon 2 | . . . 1 . . 1 Impact Weapon . | . . . . . . . Slashing Weapon . | . . . . . . . Piercing Weapon . | . . . . . . . Special Melee Weapon . | . . . . . . . Unidentified Prototypes . | . . . . . . . Parts Lost 13 | . 1 . 2 1 2 7 Power 3 | . . . 1 . . 2 Propulsion 4 | . 1 . 1 . . 2 Utility 2 | . . . . . 1 1 Weapon 4 | . . . . 1 1 2 Highest Loss Streak 4 | . 1 . 1 1 2 4 To Critical Strikes 1 | . 1 . . . . . Average Slot Usage (%) 74 | . 76 73 89 77 74 42 Engine 15 | . 14 14 20 22 18 2 Treads 10 | . 26 14 3 . 1 12 Hover 4 | . . . 10 11 7 . Storage 7 | . 14 11 . . 8 9 Processor 7 | . . 1 21 11 4 9 Hackware 6 | . . 2 11 11 9 8 Protection 2 | . . . . 10 9 . Energy Gun 8 | . 3 11 11 11 9 1 Ballistic Gun 7 | . 17 11 . . 7 . Launcher 3 | . . 4 10 . . . Naked Turns . | . . . . . . . Heaviest Build 25 | 12 13 15 21 20 25 19 Greatest Support 40 | 40 40 20 40 6 20 40 Greatest Overweight (x) 5 | . . . 5 3 4 3 Average Overweight (x) . | . . . 1 1 3 . Largest Inventory Capacity 10 | 8 8 8 5 5 10 10 Average Capacity 7 | 7 8 7 5 5 9 10 Most Carried 8 | 5 3 6 5 5 6 8 Average Carried 2 | 1 1 1 4 2 4 5 Final Capacity 10 | 8 8 5 5 5 10 10 Final Carried 6 | 2 3 5 5 3 6 5 Class Distribution -------------------- 97% | Mutant Dominant Class ---------------- Mutant | -10/Materials Mutant | -10/Mines Mutant | -9/Materials Mutant | -9/Mines Mutant | -8/Materials Mutant | -8/Storage Resources | -11 -10 -10 -9 -9 -8 -8 ----------- Run | Yrd Mat Min Mat Min Mat Sto Matter Collected 1059 | 291 225 71 297 65 96 14 Remotely . | . . . . . . . Salvage Created 1434 | 64 445 . 516 173 174 62 Parts 83 | 2 23 . 32 9 13 4 Haulers Intercepted 1 | . . . 1 . . . Recyclers Shooed 3 | . . . 3 . . . Parts Field Recycled . | . . . . . . . Retrieved Matter . | . . . . . . . Parts Self-Destructed . | . . . . . . . Prevented . | . . . . . . . Kills | -11 -10 -10 -9 -9 -8 -8 ------- Run | Yrd Mat Min Mat Min Mat Sto Combat Hostiles Destroyed 28 | . 10 . 10 3 3 2 Melee 1 | . . . . . . 1 Guns 21 | . 10 . 4 3 3 1 AOE 6 | . . . 6 . . . Classes Destroyed 9 | 1 3 . 5 . . . Builder 3 | . . . 2 . 1 . Hauler 1 | . . . 1 . . . Recycler 7 | 1 1 . 3 2 . . Mechanic 1 | . . . 1 . . . Watcher 1 | . 1 . . . . . Swarmer 6 | . 3 . . 3 . . Grunt 14 | . 7 . 6 . . 1 Brawler 1 | . . . 1 . . . Sentry 7 | . . . 3 . 3 1 Best Kill Streak 9 | 1 4 . 9 3 2 1 Combat Bots Only 6 | . 3 . 6 3 2 1 Max Kills in Single Turn 4 | 1 2 . 4 1 1 1 Gunslinging . | . . . . . . . Exploded 2 | . . . 2 . . . Melee 1 | . . . . . . 1 Uniques/NPCs Destroyed . | . . . . . . . Combat | -11 -10 -10 -9 -9 -8 -8 -------- Run | Yrd Mat Min Mat Min Mat Sto Hostile Shots Fired 249 | . 61 . 24 24 37 103 Missed 75 | . 19 . 8 5 10 33 Damage Taken 2469 | . 471 . 373 199 436 990 Core 829 | . 86 . 119 71 76 477 Absorbed by Shields . | . . . . . . . Core Remaining (%) 72 | 100 . 65 . 52 . . Volleys Fired 136 | 7 66 . 19 16 15 13 Largest 2 | 1 2 . 2 1 2 1 Hottest 96 | 20 60 . 96 63 86 63 Shots Fired 183 | 7 92 . 34 16 21 13 Gun 162 | 7 92 . 19 16 21 7 Cannon . | . . . . . . . Launcher 15 | . . . 15 . . . Special 6 | . . . . . . 6 Kinetic 108 | 7 86 . . . 15 . Thermal 57 | . 6 . 16 16 6 13 Explosive 15 | . . . 15 . . . Electromagnetic 3 | . . . 3 . . . Robot Hit Streak 14 | 7 6 . 14 5 10 8 Robot Miss Streak 5 | . 5 . 1 2 2 2 Penetration Max . | . . . . . . . Secondary Targets 1 | . 1 . . . . . Max Gunslinging Chain 1 | . 1 . . . . . Shots Hit Robots 129 | 7 59 . 27 10 17 9 Core Hits 75 | 2 22 . 31 6 7 7 Critical Kills 1 | . 1 . . . . . Critical Parts Destroyed . | . . . . . . . Critical Strikes 1 | . 1 . . . . . Destroy 1 | . 1 . . . . . Melee Attacks . | . . . . . . . Impact . | . . . . . . . Slashing . | . . . . . . . Piercing . | . . . . . . . Sneak Attacks . | . . . . . . . Combat Hostiles . | . . . . . . . Follow-up Attacks . | . . . . . . . Damage Inflicted 2748 | 89 746 . 1334 168 271 140 Guns 1633 | 89 737 . 272 165 271 99 Cannons . | . . . . . . . Explosions 1060 | . . . 1060 . . . Melee . | . . . . . . . Ramming 23 | . 9 . 2 3 . 9 Kinetic 1001 | 89 713 . . . 199 . Thermal 616 | . 24 . 224 165 72 131 Explosive 1060 | . . . 1060 . . . Electromagnetic 48 | . . . 48 . . . Impact . | . . . . . . . Slashing . | . . . . . . . Piercing . | . . . . . . . Highest Corruption 1 | . 1 1 . . . . Average Corruption 1 | . 1 1 . . . . Corruption Purged . | . . . . . . . Corruption Blocked . | . . . . . . . Effects 8 | . . 8 . . . . Message Errors 1 | . . 1 . . . . Matter Fused 4 | . . 4 . . . . Data Loss (minor) 3 | . . 3 . . . . Overload Shots . | . . . . . . . Overflow Damage . | . . . . . . . Projectiles . | . . . . . . . Explosions . | . . . . . . . Melee . | . . . . . . . Knockbacks 1 | . . . . . . 1 Impact 1 | . . . . . . 1 Kinetic . | . . . . . . . Secondary . | . . . . . . . Self-Inflicted Damage 156 | . . . 155 1 . . Shots 4 | . . . 4 . . . Rammed 14 | . 4 . 1 1 . 8 Targets Rammed 15 | . 4 . 1 1 . 9 Kicked . | . . . . . . . Crushed 1 | . . . . . . 1 Highest Temperature 352 | . 40 . 168 352 155 69 Average Temperature 75 | . 12 . 69 130 46 41 Received Heat Transfer 987 | . 234 . 69 . 261 423 Siege Activations . | . . . . . . . Robots Corrupted . | . . . . . . . Combat Hostiles . | . . . . . . . Parts Fried . | . . . . . . . Impact Corruptions . | . . . . . . . Robots Melted . | . . . . . . . Combat Hostiles . | . . . . . . . Parts Melted . | . . . . . . . Heat Transferred 1382 | . 50 . 481 370 148 333 Parts Sabotaged . | . . . . . . . Parts Stolen . | . . . . . . . Parts Stripped . | . . . . . . . Power Chain Reactions . | . . . . . . . Alert | -11 -10 -10 -9 -9 -8 -8 ------- Run | Yrd Mat Min Mat Min Mat Sto Peak Influence 339 | 5 231 37 339 167 132 95 Initial 102 | . 3 37 . 102 7 46 Average 81 | 2 89 19 154 139 38 62 Maximum Alert Level 1 | . 1 . 1 . . . Low Security (%) 88 | 100 83 100 58 100 100 100 Level 1 11 | . 16 . 41 . . . Level 2 . | . . . . . . . Level 3 . | . . . . . . . Level 4 . | . . . . . . . Level 5 . | . . . . . . . High Security . | . . . . . . . Max Security . | . . . . . . . Squads Dispatched 5 | . 1 1 1 . 1 1 Investigation 3 | . 1 1 . . . 1 Extermination . | . . . . . . . Reinforcement 2 | . . . 1 . 1 . Assault . | . . . . . . . Garrison . | . . . . . . . Intercept . | . . . . . . . Searches Triggered . | . . . . . . . Construction Impeded . | . . . . . . . Haulers Reinforced . | . . . . . . . Active Scanning Responses . | . . . . . . . Cargo Convoy Interrupts . | . . . . . . . Stealth | -11 -10 -10 -9 -9 -8 -8 --------- Run | Yrd Mat Min Mat Min Mat Sto Distress Signals 3 | . 2 . . . . 1 Communications Jammed . | . . . . . . . Distress Signals . | . . . . . . . Times Spotted 55 | . 21 . 9 6 7 12 Peak Tracking Total 9 | . 4 . 3 4 5 9 Tactical Retreats . | . . . . . . . Traps | -11 -10 -10 -9 -9 -8 -8 ------- Run | Yrd Mat Min Mat Min Mat Sto Traps Triggered 3 | . 2 . . . . 1 Indirectly . | . . . . . . . Trap Hack Attempts . | . . . . . . . Triggered . | . . . . . . . Disarmed . | . . . . . . . Reprogrammed . | . . . . . . . Reused . | . . . . . . . Traps Extracted . | . . . . . . . Installed . | . . . . . . . Triggered . | . . . . . . . Machines | -11 -10 -10 -9 -9 -8 -8 ---------- Run | Yrd Mat Min Mat Min Mat Sto Machines Disabled 4 | . . . 4 . . . Max in Single Turn 1 | . . . 1 . . . Machines Repaired . | . . . . . . . Machines Dismantled . | . . . . . . . Machines Sabotaged . | . . . . . . . Overloaded Fab Kills . | . . . . . . . Hacking | -11 -10 -10 -9 -9 -8 -8 --------- Run | Yrd Mat Min Mat Min Mat Sto Machines Accessed 9 | . 3 2 2 . . 2 Terminals 5 | . 1 1 2 . . 1 Fabricators . | . . . . . . . Repair Stations 1 | . 1 . . . . . Recycling Units 2 | . 1 . . . . 1 Scanalyzers . | . . . . . . . Garrison Access . | . . . . . . . Total Hacks 18 | . 5 3 5 . . 5 Successful 13 | . 3 3 5 . . 2 Failed 5 | . 2 . . . . 3 Catastrophic . | . . . . . . . Database Lockouts . | . . . . . . . Manual . | . . . . . . . Terminals 10 | . 1 2 5 . . 2 Fabricators . | . . . . . . . Repair Stations 3 | . 3 . . . . . Recycling Units 4 | . 1 . . . . 3 Scanalyzers . | . . . . . . . Garrison Access . | . . . . . . . Terminal Hacks 10 | . 1 3 5 . . 1 Record 6 | . 1 . 5 . . . Open Door 1 | . . 1 . . . . Dispatch Records 1 | . . 1 . . . . Transport Status 1 | . . . . . . 1 Zone Layout 1 | . . 1 . . . . Fabricator Hacks . | . . . . . . . Repair Station Hacks 1 | . 1 . . . . . Scan Component 1 | . 1 . . . . . Recycling Unit Hacks 2 | . 1 . . . . 1 Retrieve Matter 2 | . 1 . . . . 1 Scanalyzer . | . . . . . . . Garrison Access Hacks . | . . . . . . . Unauthorized Hacks . | . . . . . . . Terminals . | . . . . . . . Fabricators . | . . . . . . . Repair Stations . | . . . . . . . Recycling Units . | . . . . . . . Scanalyzers . | . . . . . . . Garrison Access . | . . . . . . . Data Cores Recovered . | . . . . . . . Used . | . . . . . . . Hacking Detections 4 | . 1 . 2 . . 1 Full Trace Events . | . . . . . . . Feedback Events . | . . . . . . . Feedback Blocked . | . . . . . . . Robot Schematics Acquired . | . . . . . . . Robots Built . | . . . . . . . Authchips . | . . . . . . . Time . | . . . . . . . Total Robot Build Rating . | . . . . . . . Part Schematics Acquired . | . . . . . . . Parts Built . | . . . . . . . Authchips . | . . . . . . . Time . | . . . . . . . Total Part Build Rating . | . . . . . . . Parts Repaired . | . . . . . . . Time . | . . . . . . . Parts Recycled . | . . . . . . . Recycled Matter . | . . . . . . . Retrieved Matter . | . . . . . . . Retrieved Components . | . . . . . . . Parts Scanalyzed . | . . . . . . . Part Schematics Acquired . | . . . . . . . Parts Damaged . | . . . . . . . Bothacking | -11 -10 -10 -9 -9 -8 -8 ------------ Run | Yrd Mat Min Mat Min Mat Sto Used RIF Installer . | . . . . . . . Robots Hacked . | . . . . . . . Non-combat . | . . . . . . . Combat . | . . . . . . . Robot Hacks Applied . | . . . . . . . Relay Couplers Released . | . . . . . . . Fabnet Peak Effective % . | . . . . . . . Robots Rewired . | . . . . . . . Allies Hacked . | . . . . . . . Hacks Repelled . | . . . . . . . Allies | -11 -10 -10 -9 -9 -8 -8 -------- Run | Yrd Mat Min Mat Min Mat Sto Total Allies . | . . . . . . . Largest Group . | . . . . . . . Highest-Rated Group . | . . . . . . . Highest-Rated Ally . | . . . . . . . Total Orders . | . . . . . . . Ally Attacks . | . . . . . . . Total Damage . | . . . . . . . Kills . | . . . . . . . Allies Corrupted . | . . . . . . . Allies Melted . | . . . . . . . Intel | -11 -10 -10 -9 -9 -8 -8 ------- Run | Yrd Mat Min Mat Min Mat Sto Robot Analysis Total . | . . . . . . . Derelict Logs Recovered 1 | . . . . 1 . . Drone Launches . | . . . . . . . Drone Recoveries . | . . . . . . . Exploration | -11 -10 -10 -9 -9 -8 -8 ------------- Run | Yrd Mat Min Mat Min Mat Sto Turns Passed 3117 | 117 539 754 615 471 319 302 Spaces Moved 1637 | 81 233 460 299 308 105 151 Core 63 | 38 . . 4 . . 21 Treads 963 | 43 233 460 82 . 15 130 Legs . | . . . . . . . Wheels . | . . . . . . . Hover 610 | . . . 213 307 90 . Flight 1 | . . . . 1 . . Fastest Speed 50 | 50 160 160 116 120 120 160 Average Speed 162 | 108 160 160 173 137 262 165 Slowest Speed 300 | 160 160 160 300 240 300 200 Overloaded Moves . | . . . . . . . Propulsion Burnouts . | . . . . . . . Robots Hopped . | . . . . . . . Cave-ins Triggered . | . . . . . . . Exploration Rate (%) 29 | 5 39 64 27 35 9 27 Regions Visited 6 Branch Regions 3 Pre-discovered Areas 1 | . . . . 1 . . Known Exits Taken 2 | . . 1 1 . . . Unknown Exits Taken 4 | 1 1 . . 1 1 . Scrap Searched . | . . . . . . . Spaces Dug . | . . . . . . . Terrain Destroyed 139 | . . . 139 . . . Melee . | . . . . . . . Projectile . | . . . . . . . AOE 139 | . . . 139 . . . Terrain Rammed . | . . . . . . . Walls Destroyed . | . . . . . . . Machines Disabled . | . . . . . . . Actions | -11 -10 -10 -9 -9 -8 -8 --------- Run | Yrd Mat Min Mat Min Mat Sto Total 1906 | 105 311 480 360 341 130 179 Wait . | . . . . . . . Move 1631 | 80 232 459 298 307 104 151 Hop . | . . . . . . . Pick Up 49 | 8 4 9 15 5 6 2 Fast Attach . | . . . . . . . Attach 26 | 7 2 2 7 3 3 2 Detach 3 | 2 . 1 . . . . Swap 17 | . 1 3 9 2 1 1 Drop 29 | 1 2 6 11 7 1 1 Fire 136 | 7 66 . 19 16 15 13 Melee . | . . . . . . . Ram 3 | . . . 1 1 . 1 Kick . | . . . . . . . Crush 12 | . 4 . . . . 8 Escape Stasis . | . . . . . . . Rewire . | . . . . . . . Trap . | . . . . . . . Miscellaneous . | . . . . . . . Route ------- -11/Scrapyard -10/Materials -10/Mines (discovered 2 exits: *Mat x2) -9/Materials -9/Mines (discovered 2 exits: [*Mat x2]) -8/Materials -8/Storage History --------- Turn | Location | Event 10 | -11/Scrapyard | Discovered new exit (range 15) 118 | -11/Scrapyard | Entered Materials 309 | -10/Materials | Build established: Mutant 612 | -10/Materials | Discovered new exit (range 16) 657 | -10/Materials | Entered Mines 779 | -10/Mines | Discovered new exit (range 15) 791 | -10/Mines | Received a Rocket Launcher from a helpful Derelict 1241 | -10/Mines | Discovered new exit (range 6) 1274 | -10/Mines | Met a Derelict shopkeep closing up shop 1409 | -10/Mines | Identified exit to Materials 1411 | -10/Mines | Entered Materials 1411 | -9/Materials | Evolved 2 slots: Power x1, Utility x1 1985 | -9/Materials | Discovered new exit (range 10) 2022 | -9/Materials | Identified exit to Mines 2026 | -9/Materials | Entered Mines 2258 | -9/Mines | Assembled infested the area 2363 | -9/Mines | Found a damaged Exp. Sensor Array with a note attached 2368 | -9/Mines | Found Prototype Device 2439 | -9/Mines | Discovered new exit (range 8) 2447 | -9/Mines | Learned location of Zion (-7) 2465 | -9/Mines | Discovered new exit (range 9) 2497 | -9/Mines | Entered Materials 2497 | -8/Materials | Evolved 2 slots: Utility x1, Weapon x1 2781 | -8/Materials | Discovered new exit (range 10) 2816 | -8/Materials | Entered Storage 2922 | -8/Storage | Lost 4 parts (2p2w) 3079 | -8/Storage | Core integrity fell below 50% 3107 | -8/Storage | Core integrity fell below 20% 3118 | -8/Storage | Destroyed by G-47 Trooper with Particle Gun Last Messages --------------- Current location identified: Storage K-01 Serf collects debris. Connecting with Terminal... >>Enumerate(Transport) Retrieving latest reported positions... Found 6 active transport squads. Downloaded coordinate data. Lgt. Treads destroyed. Critical hit (Burn: +37). Slammed into Y-45 Defender. Lgt. Treads destroyed. Slammed into Y-45 Defender. Critical hit (Burn: +37). Slug penetrates Wall. Hacking Suite destroyed. Slug penetrates Wall. Triggered Alarm Trap. An alarm sounds. ALERT: Alarm triggered, dispatching investigation squad. Map ----- +----------------------------------------------------+ | # #??#####????????????????????????????????????? | | ## ##??????????????????????????????????????????? | | # ###########????????????????????????????????? | | # #????????????????????????????????? | | # T +????????????????????????????????? | | # #????????????????????????????????? | | # #????????????????????????????????? | | ###### #????????????????????????????????? | | #????????????????????????????????? | | ##### #????????????????????????????????? | | #???# #????????????????????????????????? | | ##+##### #?????????##?????????????????????? | | # # # #???###### #?????????????????????? | | #?#"""" # #???? #?????????????????????? | | ???#"""" + #???? """ #?????????????????????? | | ????#"""" # ##/#####?"R ??????????????????????? | | ????#"""" # # #?""" ??????????????????????? | | ????# # # #?? ???????????????????????? | | ????#####+## # #?? Y ???????????#???????????? | | ??#?????# # ####/######### #????????? | | ??# ????# # / h /????????? | | ??# ????# # ####Y #????????? | | ??# ##### ##+##/##??#gg""" !![ #????????? | | ??# % #???# "G !![ %=#????????? | | ??# #####/##### #???# """a ![ = #????????? | | ### # % ### #???# @ #????????? | | + """ ## Y Y #????????? | | # """ ###+################# #????????? | | # """ #?????????????????????????????????? | | " #?????????????????????????????????? | | ############?????????????????????????????????? | | ?????????????????????????????????????????????? | | ?????????????????????????????????????????????? | | ??????????????????????????????????????????????? | | ??????????????????????????????????????????????? | | ??????????????????????????????????????????????? | | ???????????????????????????????????????????????? | | ????????????????????????????????????????????????? | | ?????????????????????????????????????????????????? | | ?????????????????????????????????????????????????? | | ?????????????????????????????????????????????????? | | ?????????????????????????????????????????????????? | | ?????????????????????????????????????????????????? | | ?????????????????????????????????????????????????? | | ?????????????????????????????????????????????????? | | ?????????????????????????????????????????????????? | | ?????????????????????????????????????????????????? | | ?????????????????????????????????????????????????? | | ?????????????????????????????????????????????????? | | | +----------------------------------------------------+ Best States ------------- Heat Dissipation 31 Energy Generation 19 Energy Capacity 430 Matter Stores 300 Matter Capacity 300 Sight Range 16 Terrain Scan Density 85 Armor Coverage 150 Resistance: EM 15 Evasion (%) 50 Recoil Reduction 2 Offensive Hacking 10 Item Schematics ----------------- None Robot Schematics ------------------ None Fabricated ------------ Nothing Alien Tech Used ----------------- None Achievements -------------- Storm Trooper Tourist Challenges ------------ None Game ------ Seed CloakSignalNeutralizer Manual? 0 Play Time 00:26:05 Cumulative 1.9 hours Start 2024.04.03 @ 17:25:59 End 2024.04.03 @ 19:36:06 Sessions 3 Manual Loads 0 Difficulty Rogue Special Mode None Game No. 4 Rogue 3 Adventurer 1 Explorer 0 Win Type - Total 0 Types 0/0/0/0/0/0/0/0/0 Lore% 1 Gallery% 7 Achievement% 5 Wizard Run 0 Options --------- Layout 1 ASCII 0 Keyboard 0 Movement Arrows Keybinds 0 Fullscreen 1 Font 32/Terminus Map View 50x40 Zoom Use 0% Tactical HUD 0 Map Filters NONE Filters NONE Steam 1 RUN: f16b7dd9-8438-47fb-a1c1-93acf9c5795d